[Event "Live Chess"]
[Site "Chess.com"]
[Date "2023.05.20"]
[Round "-"]
[White "LaupMiths"]
[Black "Supertromp"]
[Result "0-1"]
[WhiteElo "1824"]
[BlackElo "2171"]
[TimeControl "300"]
[EndTime "10:21:11 PDT"]
[Termination "Supertromp won by checkmate"]

1. e4 {[%clk 0:04:55.6]} 1... c5 {[%clk 0:04:57.6]} 2. Nf3 {[%clk 0:04:53.4]}
2... d6 {[%clk 0:04:55.5]} 3. Bb5+ {[%clk 0:04:49.7]} 3... Nc6 {[%clk
0:04:53.1]} 4. O-O {[%clk 0:04:47.4]} 4... g6 {[%clk 0:04:33.3]} 5. c3 {[%clk
0:04:44.4]} 5... a6 {[%clk 0:04:17]} 6. Ba4 {[%clk 0:04:42.8]} 6... b5 {[%clk
0:04:15.6]} 7. Bc2 {[%clk 0:04:41.7]} 7... Bg7 {[%clk 0:04:14.2]} 8. d4 {[%clk
0:04:39.8]} 8... Bb7 {[%clk 0:04:08.7]} 9. Re1 {[%clk 0:04:36.2]} 9... Nf6
{[%clk 0:03:54.3]} 10. d5 {[%clk 0:04:31.6]} 10... Na5 {[%clk 0:03:20.5]} 11. h3
{[%clk 0:04:23.3]} 11... O-O {[%clk 0:03:17.8]} 12. Nbd2 {[%clk 0:04:13.6]}
12... e6 {[%clk 0:03:10.4]} 13. dxe6 {[%clk 0:04:11.1]} 13... fxe6 {[%clk
0:03:08.4]} 14. b4 {[%clk 0:04:09.5]} 14... cxb4 {[%clk 0:03:06.4]} 15. cxb4
{[%clk 0:04:08.5]} 15... Nc6 {[%clk 0:03:01]} 16. Rb1 {[%clk 0:04:07.2]} 16...
Nh5 {[%clk 0:02:41.3]} 17. Nf1 {[%clk 0:04:00.3]} 17... Ne5 {[%clk 0:02:22.8]}
18. Nxe5 {[%clk 0:03:54.3]} 18... Bxe5 {[%clk 0:02:22.7]} 19. Bb2 {[%clk
0:03:40.9]} 19... Bxb2 {[%clk 0:02:19.6]} 20. Rxb2 {[%clk 0:03:39.3]} 20... Qf6
{[%clk 0:02:17.3]} 21. Rb3 {[%clk 0:03:26.3]} 21... Qxf2+ {[%clk 0:02:15.2]} 22.
Kh1 {[%clk 0:03:25.2]} 22... Rac8 {[%clk 0:02:04.8]} 23. Bb1 {[%clk 0:03:07.5]}
23... Nf4 {[%clk 0:01:54.3]} 24. Rg3 {[%clk 0:02:51.8]} 24... Rc3 {[%clk
0:01:53.4]} 25. Ree3 {[%clk 0:02:38.7]} 25... Rxe3 {[%clk 0:01:49.5]} 26. Rxe3
{[%clk 0:02:33.8]} 26... Qxg2# {[%clk 0:01:48.7]} 0-1

[Event "Live Chess"]
[Site "Chess.com"]
[Date "2023.05.20"]
[Round "-"]
[White "birdseed45"]
[Black "tpm07"]
[Result "0-1"]
[WhiteElo "1839"]
[BlackElo "2001"]
[TimeControl "300"]
[EndTime "10:21:19 PDT"]
[Termination "tpm07 won by resignation"]

1. e4 {[%clk 0:04:58.4]} 1... e5 {[%clk 0:04:57.5]} 2. Nf3 {[%clk 0:04:56.3]}
2... Nc6 {[%clk 0:04:51.8]} 3. Bb5 {[%clk 0:04:55]} 3... a6 {[%clk 0:04:49.7]}
4. Ba4 {[%clk 0:04:53.9]} 4... Nf6 {[%clk 0:04:46.6]} 5. O-O {[%clk 0:04:52.6]}
5... Be7 {[%clk 0:04:44]} 6. Re1 {[%clk 0:04:51.2]} 6... b5 {[%clk 0:04:40.9]}
7. Bb3 {[%clk 0:04:48.8]} 7... O-O {[%clk 0:04:38.9]} 8. c3 {[%clk 0:04:47.6]}
8... d5 {[%clk 0:04:37.9]} 9. d3 {[%clk 0:04:43.5]} 9... Bb7 {[%clk 0:04:31]}
10. Bg5 {[%clk 0:04:34.7]} 10... h6 {[%clk 0:04:28.3]} 11. Bxf6 {[%clk
0:04:32.6]} 11... Bxf6 {[%clk 0:04:23.3]} 12. exd5 {[%clk 0:04:30.8]} 12... Na5
{[%clk 0:04:16.5]} 13. c4 {[%clk 0:04:27.4]} 13... Nxb3 {[%clk 0:04:00.6]} 14.
Qxb3 {[%clk 0:04:27.3]} 14... Rb8 {[%clk 0:03:58]} 15. Nxe5 {[%clk 0:04:16.8]}
15... bxc4 {[%clk 0:03:54]} 16. dxc4 {[%clk 0:04:08.6]} 16... Bxd5 {[%clk
0:03:52.1]} 17. Qa4 {[%clk 0:03:52.9]} 17... Ba8 {[%clk 0:03:06.9]} 18. Qc2
{[%clk 0:03:16.2]} 18... Qd4 {[%clk 0:02:58.7]} 19. Nd3 {[%clk 0:02:55.1]} 19...
Be4 {[%clk 0:02:50.1]} 20. Rd1 {[%clk 0:02:44.7]} 20... Bxd3 {[%clk 0:02:47.1]}
21. Qxd3 {[%clk 0:02:41.5]} 21... Qxd3 {[%clk 0:02:41.4]} 22. Rxd3 {[%clk
0:02:38.4]} 22... Bxb2 {[%clk 0:02:40.2]} 0-1

[Event "Live Chess"]
[Site "Chess.com"]
[Date "2023.05.20"]
[Round "-"]
[White "HD_IN4k"]
[Black "AwesomeFredster"]
[Result "1-0"]
[WhiteElo "325"]
[BlackElo "1259"]
[TimeControl "300"]
[EndTime "10:21:23 PDT"]
[Termination "HD_IN4k won by checkmate"]

1. d4 {[%clk 0:04:57.6]} 1... e5 {[%clk 0:04:58.8]} 2. dxe5 {[%clk 0:04:45.7]}
2... Bc5 {[%clk 0:04:50.7]} 3. Be3 {[%clk 0:04:41.4]} 3... Bb4+ {[%clk
0:04:46.2]} 4. Bd2 {[%clk 0:04:39]} 4... Bc5 {[%clk 0:04:42.7]} 5. Nh3 {[%clk
0:04:33.2]} 5... Qh4 {[%clk 0:04:36.5]} 6. Nc3 {[%clk 0:04:19.8]} 6... d6 {[%clk
0:04:33.6]} 7. exd6 {[%clk 0:04:17.2]} 7... Bxh3 {[%clk 0:04:32.7]} 8. g3 {[%clk
0:03:55.2]} 8... Qh5 {[%clk 0:04:24.7]} 9. Bxh3 {[%clk 0:03:52.8]} 9... Qxh3
{[%clk 0:04:23.7]} 10. e3 {[%clk 0:03:45.8]} 10... Qg2 {[%clk 0:04:22.2]} 11.
Rf1 {[%clk 0:03:40.6]} 11... Qxh2 {[%clk 0:04:21.2]} 12. dxc7 {[%clk 0:03:30.7]}
12... Nc6 {[%clk 0:04:14.6]} 13. Qg4 {[%clk 0:03:22.4]} 13... Nce7 {[%clk
0:04:06.5]} 14. Qxg7 {[%clk 0:03:12.7]} 14... Ng6 {[%clk 0:03:34.2]} 15. Ne4
{[%clk 0:02:41.8]} 15... Be7 {[%clk 0:03:24.9]} 16. Qc3 {[%clk 0:02:31.3]} 16...
Bf6 {[%clk 0:03:21.2]} 17. c8=Q+ {[%clk 0:02:27.9]} 17... Rxc8 {[%clk 0:03:18]}
18. Qxc8+ {[%clk 0:02:27.1]} 18... Bd8 {[%clk 0:03:17]} 19. Nd6+ {[%clk
0:02:21.7]} 19... Ke7 {[%clk 0:03:14.8]} 20. Bb4 {[%clk 0:02:17.8]} 20... Nf6
{[%clk 0:03:11.4]} 21. Nxb7+ {[%clk 0:02:10.7]} 21... Ke8 {[%clk 0:03:08.2]} 22.
Qxd8# {[%clk 0:02:01.8]} 1-0

[Event "Live Chess"]
[Site "Chess.com"]
[Date "2023.05.20"]
[Round "-"]
[White "Zeraora719"]
[Black "mliszewski"]
[Result "0-1"]
[WhiteElo "856"]
[BlackElo "1903"]
[TimeControl "300"]
[EndTime "10:21:24 PDT"]
[Termination "mliszewski won by checkmate"]

1. e4 {[%clk 0:04:53.3]} 1... c6 {[%clk 0:04:58.3]} 2. f3 {[%clk 0:04:50.6]}
2... d5 {[%clk 0:04:58.2]} 3. d4 {[%clk 0:04:48.4]} 3... e5 {[%clk 0:04:55.8]}
4. exd5 {[%clk 0:04:46.3]} 4... Qxd5 {[%clk 0:04:46.3]} 5. c3 {[%clk 0:04:42.1]}
5... exd4 {[%clk 0:04:43.5]} 6. cxd4 {[%clk 0:04:40.3]} 6... Nf6 {[%clk
0:04:41.2]} 7. f4 {[%clk 0:04:29]} 7... Bb4+ {[%clk 0:04:34.5]} 8. Bd2 {[%clk
0:04:27]} 8... Bxd2+ {[%clk 0:04:33.1]} 9. Qxd2 {[%clk 0:04:24.5]} 9... O-O
{[%clk 0:04:33]} 10. Qb4 {[%clk 0:04:18.9]} 10... Re8+ {[%clk 0:04:29.1]} 11.
Ne2 {[%clk 0:04:12.6]} 11... Na6 {[%clk 0:04:25.9]} 12. Qa4 {[%clk 0:04:05.3]}
12... Bg4 {[%clk 0:04:19.4]} 13. g3 {[%clk 0:04:01.5]} 13... Qxh1 {[%clk
0:04:17]} 14. Nd2 {[%clk 0:03:56]} 14... Rxe2+ {[%clk 0:04:14.2]} 15. Kd1 {[%clk
0:03:53.3]} 15... Qxf1+ {[%clk 0:04:13.4]} 16. Nxf1 {[%clk 0:03:49.8]} 16...
Rxb2+ {[%clk 0:04:07]} 17. Kc1 {[%clk 0:03:42.2]} 17... Rf2 {[%clk 0:04:05.8]}
18. Ne3 {[%clk 0:03:39]} 18... Rxh2 {[%clk 0:04:01.7]} 19. Qb3 {[%clk
0:03:35.1]} 19... Be6 {[%clk 0:03:56.3]} 20. Qxb7 {[%clk 0:03:32.9]} 20... Rb8
{[%clk 0:03:44.1]} 21. Qxa6 {[%clk 0:03:28.9]} 21... Rh1+ {[%clk 0:03:43.2]} 22.
Kc2 {[%clk 0:03:24.4]} 22... Rxa1 {[%clk 0:03:42]} 23. Qxa7 {[%clk 0:03:22.9]}
23... Rab1 {[%clk 0:03:37.5]} 24. Nc4 {[%clk 0:03:06.6]} 24... Bxc4 {[%clk
0:03:35.2]} 25. Kc3 {[%clk 0:03:04.4]} 25... Bd5 {[%clk 0:03:33.1]} 26. f5
{[%clk 0:02:59.3]} 26... Ne4+ {[%clk 0:03:30.5]} 27. Kd3 {[%clk 0:02:55.5]}
27... Nxg3 {[%clk 0:03:27.2]} 28. a4 {[%clk 0:02:53.1]} 28... Nxf5 {[%clk
0:03:21.9]} 29. a5 {[%clk 0:02:46.7]} 29... Nd6 {[%clk 0:03:21]} 30. a6 {[%clk
0:02:44.2]} 30... Bc4+ {[%clk 0:03:18.4]} 31. Kc2 {[%clk 0:02:27.6]} 31... Ne4
{[%clk 0:03:03.4]} 32. Qc5 {[%clk 0:02:16.8]} 32... R8b2# {[%clk 0:02:57.5]} 0-1

[Event "Live Chess"]
[Site "Chess.com"]
[Date "2023.05.20"]
[Round "-"]
[White "Ian-Morley"]
[Black "CheckThis4"]
[Result "0-1"]
[WhiteElo "1034"]
[BlackElo "2546"]
[TimeControl "300"]
[EndTime "10:21:24 PDT"]
[Termination "CheckThis4 won by resignation"]

1. e4 {[%clk 0:04:57.5]} 1... d5 {[%clk 0:04:58.5]} 2. exd5 {[%clk 0:04:55.6]}
2... Nf6 {[%clk 0:04:57.6]} 3. d4 {[%clk 0:04:53.9]} 3... Bg4 {[%clk 0:04:55.5]}
4. Be2 {[%clk 0:04:51.7]} 4... Bxe2 {[%clk 0:04:53]} 5. Qxe2 {[%clk 0:04:50.8]}
5... Qxd5 {[%clk 0:04:52.4]} 6. Nc3 {[%clk 0:04:49.6]} 6... Qxg2 {[%clk
0:04:38.8]} 7. Qf3 {[%clk 0:04:48.4]} 7... Qxf3 {[%clk 0:04:35.6]} 8. Nxf3
{[%clk 0:04:47.3]} 8... Nc6 {[%clk 0:04:25.2]} 9. Ne5 {[%clk 0:04:43.1]} 9...
Nxd4 {[%clk 0:04:15.2]} 10. Kd2 {[%clk 0:04:37]} 10... e6 {[%clk 0:04:10.3]} 11.
a3 {[%clk 0:04:34.6]} 11... Bd6 {[%clk 0:04:06.6]} 12. f4 {[%clk 0:04:33.2]}
12... Bxe5 {[%clk 0:03:56.7]} 13. fxe5 {[%clk 0:04:32.1]} 13... Ng4 {[%clk
0:03:55.5]} 14. b4 {[%clk 0:04:28.5]} 14... O-O-O {[%clk 0:03:52.6]} 15. Ke1
{[%clk 0:04:20.8]} 15... Nxc2+ {[%clk 0:03:50.9]} 16. Kf1 {[%clk 0:04:17.3]}
16... Nxa1 {[%clk 0:03:49.5]} 0-1

[Event "Live Chess"]
[Site "Chess.com"]
[Date "2023.05.20"]
[Round "-"]
[White "smoggyrabbit"]
[Black "Duke_of_Bebington"]
[Result "0-1"]
[WhiteElo "1620"]
[BlackElo "1582"]
[TimeControl "300"]
[EndTime "10:21:25 PDT"]
[Termination "Duke_of_Bebington won by checkmate"]

1. d4 {[%clk 0:04:59.4]} 1... d5 {[%clk 0:04:58.3]} 2. Nf3 {[%clk 0:04:58.5]}
2... Nf6 {[%clk 0:04:55.8]} 3. e3 {[%clk 0:04:57.6]} 3... Bf5 {[%clk 0:04:54.4]}
4. Nh4 {[%clk 0:04:54.2]} 4... Be6 {[%clk 0:04:52.1]} 5. Bd3 {[%clk 0:04:46.8]}
5... g6 {[%clk 0:04:43]} 6. b3 {[%clk 0:04:42.9]} 6... Bg7 {[%clk 0:04:41.7]} 7.
Bb2 {[%clk 0:04:41.8]} 7... Nbd7 {[%clk 0:04:39.9]} 8. O-O {[%clk 0:04:40]} 8...
c5 {[%clk 0:04:39]} 9. Nd2 {[%clk 0:04:29.2]} 9... Rc8 {[%clk 0:04:33.5]} 10. c4
{[%clk 0:04:12.3]} 10... cxd4 {[%clk 0:04:15.7]} 11. exd4 {[%clk 0:04:10.1]}
11... O-O {[%clk 0:04:05.5]} 12. f4 {[%clk 0:03:38.7]} 12... Bg4 {[%clk
0:03:43.4]} 13. Qe1 {[%clk 0:03:21.1]} 13... Re8 {[%clk 0:03:22.2]} 14. h3
{[%clk 0:03:17.3]} 14... Be6 {[%clk 0:03:18.5]} 15. f5 {[%clk 0:03:10.9]} 15...
gxf5 {[%clk 0:03:17]} 16. Nxf5 {[%clk 0:03:07.3]} 16... Bxf5 {[%clk 0:03:08.9]}
17. Bxf5 {[%clk 0:03:05.1]} 17... dxc4 {[%clk 0:03:06.1]} 18. bxc4 {[%clk
0:03:03.7]} 18... Nb6 {[%clk 0:03:02.9]} 19. Bxc8 {[%clk 0:02:58.7]} 19... Qxc8
{[%clk 0:03:00.2]} 20. Qe2 {[%clk 0:02:52.6]} 20... e6 {[%clk 0:02:55.8]} 21.
Qd3 {[%clk 0:02:29.8]} 21... Rd8 {[%clk 0:02:39.3]} 22. d5 {[%clk 0:02:13.9]}
22... exd5 {[%clk 0:02:35.7]} 23. Bxf6 {[%clk 0:02:12.5]} 23... Bxf6 {[%clk
0:02:30.2]} 24. Rxf6 {[%clk 0:02:10.5]} 24... dxc4 {[%clk 0:02:29.1]} 25. Qg3+
{[%clk 0:01:56.3]} 25... Kh8 {[%clk 0:02:28]} 26. Rxf7 {[%clk 0:01:45.7]} 26...
Qc5+ {[%clk 0:02:16.3]} 27. Kh1 {[%clk 0:01:27.5]} 27... Qd4 {[%clk 0:02:12.3]}
28. Raf1 {[%clk 0:01:20.5]} 28... Nd7 {[%clk 0:01:46.8]} 29. Qg5 {[%clk
0:01:04.6]} 29... Rg8 {[%clk 0:01:38.3]} 30. Qh5 {[%clk 0:00:32.4]} 30... Qd3
{[%clk 0:01:20.6]} 31. R1f5 {[%clk 0:00:22.5]} 31... Nf6 {[%clk 0:00:43.4]} 32.
R7xf6 {[%clk 0:00:19.4]} 32... Qxd2 {[%clk 0:00:35.9]} 33. Rf7 {[%clk
0:00:17.5]} 33... Qxg2# {[%clk 0:00:34.3]} 0-1

[Event "Live Chess"]
[Site "Chess.com"]
[Date "2023.05.20"]
[Round "-"]
[White "LL220284LL"]
[Black "Daniel_Gliddon_FA"]
[Result "1-0"]
[WhiteElo "2417"]
[BlackElo "1178"]
[TimeControl "300"]
[EndTime "10:21:43 PDT"]
[Termination "LL220284LL won by resignation"]

1. Nf3 {[%clk 0:04:59]} 1... Nc6 {[%clk 0:04:51.5]} 2. b3 {[%clk 0:04:57.4]}
2... e6 {[%clk 0:04:42.5]} 3. Bb2 {[%clk 0:04:56.9]} 3... Nf6 {[%clk 0:04:36.8]}
4. e3 {[%clk 0:04:56.8]} 4... Be7 {[%clk 0:04:33.2]} 5. d4 {[%clk 0:04:55.8]}
5... d5 {[%clk 0:04:31.7]} 6. Bd3 {[%clk 0:04:54.2]} 6... Bd7 {[%clk 0:04:12.9]}
7. O-O {[%clk 0:04:47.6]} 7... Nb4 {[%clk 0:04:09.1]} 8. Be2 {[%clk 0:04:45.3]}
8... c5 {[%clk 0:03:58.9]} 9. Ne5 {[%clk 0:04:41.5]} 9... cxd4 {[%clk
0:03:51.5]} 10. Bxd4 {[%clk 0:04:37.1]} 10... Nc6 {[%clk 0:03:45.1]} 11. Nxd7
{[%clk 0:04:35.9]} 11... Qxd7 {[%clk 0:03:43.1]} 12. Bb2 {[%clk 0:04:33.3]}
12... O-O-O {[%clk 0:03:37.9]} 13. c4 {[%clk 0:04:30.6]} 13... Ne4 {[%clk
0:03:28.1]} 14. Nc3 {[%clk 0:04:24.8]} 14... Nxc3 {[%clk 0:03:21.2]} 15. Bxc3
{[%clk 0:04:24.7]} 15... f6 {[%clk 0:03:18.6]} 16. cxd5 {[%clk 0:04:22.6]} 16...
Qxd5 {[%clk 0:03:08.7]} 17. Qb1 {[%clk 0:04:21.5]} 17... e5 {[%clk 0:03:00.7]}
18. Rc1 {[%clk 0:04:16.6]} 18... Kb8 {[%clk 0:02:54.6]} 19. b4 {[%clk
0:04:14.3]} 19... Rhg8 {[%clk 0:02:31.5]} 20. b5 {[%clk 0:04:09.3]} 20... g5
{[%clk 0:02:27.9]} 21. bxc6 {[%clk 0:04:07.5]} 21... b6 {[%clk 0:02:04.5]} 22.
Bf3 {[%clk 0:04:02.9]} 22... Qd3 {[%clk 0:01:55]} 23. c7+ {[%clk 0:04:01]} 23...
Kxc7 {[%clk 0:01:50.4]} 24. Bxe5+ {[%clk 0:03:59.7]} 24... Kd7 {[%clk
0:01:48.3]} 25. Qxd3+ {[%clk 0:03:58.7]} 1-0

[Event "Live Chess"]
[Site "Chess.com"]
[Date "2023.05.20"]
[Round "-"]
[White "Conradical12"]
[Black "JackRudd"]
[Result "0-1"]
[WhiteElo "1530"]
[BlackElo "2400"]
[TimeControl "300"]
[EndTime "10:21:44 PDT"]
[Termination "JackRudd won by resignation"]

1. e4 {[%clk 0:04:57.8]} 1... c6 {[%clk 0:04:58.4]} 2. d4 {[%clk 0:04:56]} 2...
d5 {[%clk 0:04:57.5]} 3. f3 {[%clk 0:04:55.6]} 3... dxe4 {[%clk 0:04:53.3]} 4.
fxe4 {[%clk 0:04:55.5]} 4... e5 {[%clk 0:04:52.5]} 5. Nf3 {[%clk 0:04:53.5]}
5... Bg4 {[%clk 0:04:48.8]} 6. Bc4 {[%clk 0:04:51.6]} 6... Nf6 {[%clk
0:04:47.6]} 7. Bxf7+ {[%clk 0:04:47.9]} 7... Kxf7 {[%clk 0:04:45.2]} 8. Nxe5+
{[%clk 0:04:46.6]} 8... Ke8 {[%clk 0:04:44.3]} 9. Nxg4 {[%clk 0:04:44.4]} 9...
Nxg4 {[%clk 0:04:43.4]} 10. Qxg4 {[%clk 0:04:37.5]} 10... Qxd4 {[%clk
0:04:42.9]} 11. Rf1 {[%clk 0:04:31]} 11... Nd7 {[%clk 0:04:40]} 12. Qe6+ {[%clk
0:04:22]} 12... Be7 {[%clk 0:04:38.7]} 13. Bg5 {[%clk 0:04:18.7]} 13... Nf6
{[%clk 0:04:34.4]} 14. Nc3 {[%clk 0:04:11]} 14... Rf8 {[%clk 0:04:19.3]} 15. Rd1
{[%clk 0:04:04.4]} 15... Qb4 {[%clk 0:04:17.8]} 16. e5 {[%clk 0:03:45.3]} 16...
Qxb2 {[%clk 0:04:15.5]} 17. Bxf6 {[%clk 0:03:14.9]} 17... Qxc3+ {[%clk
0:04:13.7]} 18. Rd2 {[%clk 0:03:14]} 18... Qe3+ {[%clk 0:04:07.9]} 19. Kd1
{[%clk 0:03:11.1]} 19... gxf6 {[%clk 0:04:05.7]} 20. Qd7+ {[%clk 0:02:03.5]}
20... Kf7 {[%clk 0:04:03]} 21. Rxf6+ {[%clk 0:02:00.7]} 21... Kg8 {[%clk
0:04:02.1]} 22. Qxe7 {[%clk 0:01:51.8]} 22... Qg1+ {[%clk 0:03:46.6]} 23. Ke2
{[%clk 0:01:49.7]} 23... Qxg2+ {[%clk 0:03:45.6]} 24. Ke3 {[%clk 0:01:41.5]}
24... Qg5+ {[%clk 0:03:42.6]} 25. Kf2 {[%clk 0:01:26.9]} 25... Qxd2+ {[%clk
0:03:40.8]} 0-1

[Event "Live Chess"]
[Site "Chess.com"]
[Date "2023.05.20"]
[Round "-"]
[White "Alan_Richardson"]
[Black "CeladonFish"]
[Result "1-0"]
[WhiteElo "1681"]
[BlackElo "982"]
[TimeControl "300"]
[EndTime "10:21:58 PDT"]
[Termination "Alan_Richardson won by checkmate"]

1. d4 {[%clk 0:04:59.1]} 1... Nf6 {[%clk 0:04:58.9]} 2. Bf4 {[%clk 0:04:57.1]}
2... g6 {[%clk 0:04:58.6]} 3. Nf3 {[%clk 0:04:51]} 3... Bg7 {[%clk 0:04:57.8]}
4. c3 {[%clk 0:04:49.7]} 4... O-O {[%clk 0:04:56.6]} 5. Nbd2 {[%clk 0:04:48.4]}
5... d6 {[%clk 0:04:53.7]} 6. e4 {[%clk 0:04:45.7]} 6... c6 {[%clk 0:04:49.3]}
7. Be2 {[%clk 0:04:43.8]} 7... Nbd7 {[%clk 0:04:45.1]} 8. O-O {[%clk 0:04:41.2]}
8... Nh5 {[%clk 0:04:44.5]} 9. Be3 {[%clk 0:04:34.6]} 9... e5 {[%clk 0:04:43.3]}
10. Qc2 {[%clk 0:04:09.9]} 10... exd4 {[%clk 0:04:41.6]} 11. cxd4 {[%clk
0:04:05.6]} 11... Ndf6 {[%clk 0:04:35.5]} 12. h3 {[%clk 0:03:59.1]} 12... Nd7
{[%clk 0:04:20.2]} 13. Rad1 {[%clk 0:03:48.8]} 13... f5 {[%clk 0:04:17.2]} 14.
exf5 {[%clk 0:03:36.7]} 14... Rxf5 {[%clk 0:04:15.7]} 15. g4 {[%clk 0:03:33.5]}
15... Rxf3 {[%clk 0:03:55]} 16. Nxf3 {[%clk 0:03:23.6]} 16... Nhf6 {[%clk
0:03:52.3]} 17. Bg5 {[%clk 0:03:07.6]} 17... Qe8 {[%clk 0:03:41.3]} 18. Rfe1
{[%clk 0:03:02.9]} 18... Qf7 {[%clk 0:03:38.8]} 19. Kg2 {[%clk 0:02:37.2]} 19...
Nb6 {[%clk 0:03:32.1]} 20. Bd3 {[%clk 0:02:23.6]} 20... Nbd5 {[%clk 0:03:28.7]}
21. Bc1 {[%clk 0:02:03.2]} 21... Bd7 {[%clk 0:03:18.8]} 22. Ng5 {[%clk
0:01:57.4]} 22... Qf8 {[%clk 0:03:11.6]} 23. Ne6 {[%clk 0:01:42.3]} 23... Bxe6
{[%clk 0:03:08.8]} 24. Rxe6 {[%clk 0:01:40.6]} 24... Re8 {[%clk 0:03:07.5]} 25.
Rde1 {[%clk 0:01:35.7]} 25... Qf7 {[%clk 0:03:03]} 26. Qe2 {[%clk 0:01:20.6]}
26... Nf4+ {[%clk 0:03:01.4]} 27. Bxf4 {[%clk 0:01:17.6]} 27... Nd5 {[%clk
0:02:55.2]} 28. Rxe8+ {[%clk 0:01:15]} 28... Qxe8 {[%clk 0:02:53.6]} 29. Qxe8+
{[%clk 0:01:09.5]} 29... Bf8 {[%clk 0:02:53.1]} 30. Bh6 {[%clk 0:01:07.8]} 30...
Kh8 {[%clk 0:02:51.2]} 31. Qxf8# {[%clk 0:01:06]} 1-0

[Event "Live Chess"]
[Site "Chess.com"]
[Date "2023.05.20"]
[Round "-"]
[White "Tushinskiy"]
[Black "Olisingapore"]
[Result "1-0"]
[WhiteElo "2095"]
[BlackElo "1939"]
[TimeControl "300"]
[EndTime "10:22:03 PDT"]
[Termination "Tushinskiy won on time"]

1. d4 {[%clk 0:04:55.4]} 1... Nf6 {[%clk 0:04:58]} 2. c3 {[%clk 0:04:55.3]} 2...
d5 {[%clk 0:04:55.6]} 3. Nf3 {[%clk 0:04:55.2]} 3... c5 {[%clk 0:04:53.2]} 4.
Bf4 {[%clk 0:04:54.1]} 4... Nc6 {[%clk 0:04:52.5]} 5. e3 {[%clk 0:04:53.3]} 5...
Bf5 {[%clk 0:04:51.7]} 6. Bd3 {[%clk 0:04:44.4]} 6... e6 {[%clk 0:04:45.5]} 7.
Bxf5 {[%clk 0:04:42.8]} 7... exf5 {[%clk 0:04:45.4]} 8. O-O {[%clk 0:04:41.5]}
8... Bd6 {[%clk 0:04:39.6]} 9. Bxd6 {[%clk 0:04:39.3]} 9... Qxd6 {[%clk
0:04:39.5]} 10. dxc5 {[%clk 0:04:38.7]} 10... Qxc5 {[%clk 0:04:35.7]} 11. Nbd2
{[%clk 0:04:38.6]} 11... O-O {[%clk 0:04:32.9]} 12. Nb3 {[%clk 0:04:37.1]} 12...
Qd6 {[%clk 0:04:30.1]} 13. Qe2 {[%clk 0:04:35.6]} 13... b6 {[%clk 0:04:08.6]}
14. Rad1 {[%clk 0:04:34.4]} 14... Rfe8 {[%clk 0:03:44.7]} 15. Nbd4 {[%clk
0:04:33.2]} 15... Nxd4 {[%clk 0:03:41.2]} 16. Rxd4 {[%clk 0:04:33.1]} 16... Rac8
{[%clk 0:03:36]} 17. Rfd1 {[%clk 0:04:31.7]} 17... f4 {[%clk 0:03:32.6]} 18. e4
{[%clk 0:04:16.7]} 18... Rxe4 {[%clk 0:03:11.7]} 19. Rxe4 {[%clk 0:04:11.3]}
19... Nxe4 {[%clk 0:03:10]} 20. Qxe4 {[%clk 0:04:09.3]} 20... Rd8 {[%clk
0:02:51.3]} 21. Qd4 {[%clk 0:04:06.5]} 21... h6 {[%clk 0:02:48.3]} 22. h3 {[%clk
0:04:05.5]} 22... Qg6 {[%clk 0:02:35.2]} 23. a3 {[%clk 0:04:01.3]} 23... Qc2
{[%clk 0:02:30.5]} 24. Rd2 {[%clk 0:03:59.6]} 24... Qf5 {[%clk 0:02:17.3]} 25.
c4 {[%clk 0:03:56.4]} 25... Qb1+ {[%clk 0:02:05.1]} 26. Kh2 {[%clk 0:03:54.2]}
26... Rc8 {[%clk 0:01:36.7]} 27. cxd5 {[%clk 0:03:50.8]} 27... Rc1 {[%clk
0:01:31.5]} 28. Qxf4 {[%clk 0:03:49.5]} 28... Rh1+ {[%clk 0:01:26.8]} 29. Kg3
{[%clk 0:03:48.1]} 29... Qg6+ {[%clk 0:01:24.5]} 30. Kh4 {[%clk 0:03:39.1]}
30... Qxg2 {[%clk 0:01:20.3]} 31. Qg3 {[%clk 0:03:35.1]} 31... Rxh3+ {[%clk
0:01:17.5]} 32. Qxh3 {[%clk 0:03:33.5]} 32... g5+ {[%clk 0:01:15.1]} 33. Nxg5
{[%clk 0:03:29.9]} 33... hxg5+ {[%clk 0:01:11.7]} 34. Kh5 {[%clk 0:03:29.8]}
34... Qxh3+ {[%clk 0:01:11]} 35. Kxg5 {[%clk 0:03:29.7]} 35... Qg2+ {[%clk
0:01:04.6]} 36. Kf4 {[%clk 0:03:28.3]} 36... Qh2+ {[%clk 0:01:01.7]} 37. Ke3
{[%clk 0:03:27.2]} 37... Qh6+ {[%clk 0:00:59.1]} 38. Kd3 {[%clk 0:03:25.6]}
38... Qg6+ {[%clk 0:00:57.7]} 39. Kc3 {[%clk 0:03:23.7]} 39... Qf6+ {[%clk
0:00:46.9]} 40. Kc4 {[%clk 0:03:21.2]} 40... Qd6 {[%clk 0:00:44.1]} 41. b4
{[%clk 0:03:19.2]} 41... a6 {[%clk 0:00:41.5]} 42. Rd4 {[%clk 0:03:15.6]} 42...
b5+ {[%clk 0:00:31.9]} 43. Kd3 {[%clk 0:03:14.6]} 43... Qg6+ {[%clk 0:00:27.9]}
44. Ke3 {[%clk 0:03:13]} 44... Qg5+ {[%clk 0:00:24]} 45. f4 {[%clk 0:03:11.2]}
45... Qg3+ {[%clk 0:00:22.9]} 46. Ke4 {[%clk 0:03:09.4]} 46... Qxa3 {[%clk
0:00:21.9]} 47. d6 {[%clk 0:03:07.7]} 47... Qc1 {[%clk 0:00:19.3]} 48. d7 {[%clk
0:03:05.9]} 48... Qc6+ {[%clk 0:00:18.3]} 49. Rd5 {[%clk 0:03:02.3]} 49... Qe6+
{[%clk 0:00:17]} 50. Kd4 {[%clk 0:02:59]} 50... Qf6+ {[%clk 0:00:14.4]} 51. Kc5
{[%clk 0:02:57.8]} 51... Qe7+ {[%clk 0:00:12.3]} 52. Kc6 {[%clk 0:02:53.6]}
52... Qe6+ {[%clk 0:00:11.1]} 53. Rd6 {[%clk 0:02:51.9]} 53... Qc4+ {[%clk
0:00:10]} 54. Kb7 {[%clk 0:02:50.4]} 54... Qe4+ {[%clk 0:00:07.9]} 55. Ka7
{[%clk 0:02:45.4]} 55... Qe7 {[%clk 0:00:03.4]} 56. Rd4 {[%clk 0:02:39.5]} 56...
Kg7 {[%clk 0:00:00.6]} 57. Kxa6 {[%clk 0:02:37.1]} 1-0